fUSD/lending_fUSD_20250302
["ID","MTS","AMOUNT","RATE_DAILY","PERIOD"]
[355155519,1740937846754,-500.0,0.00024897,2]
[355155521,1740937846766,-158.488519,0.00024897,2]
[355155523,1740937846778,-500.0,0.00024897,2]
[355155525,1740937846789,-500.0,0.00024897,2]
[355155527,1740937846801,-500.0,0.00024897,2]
[355155530,1740937846812,-500.0,0.00024897,2]
[355155532,1740937846824,-500.0,0.00024897,2]
[355155535,1740937846835,-500.0,0.00024897,2]
[355155537,1740937846847,-500.0,0.00024897,2]
[355155540,1740937846859,-500.0,0.00024897,2]
[355155542,1740937846870,-500.0,0.00024897,2]
[355155544,1740937846882,-588.19,0.00024897,2]
[355155546,1740937846894,-500.0,0.00024897,2]
[355155548,1740937846906,-500.0,0.00024897,2]
[355155550,1740937846920,-500.0,0.00024897,2]
[355155552,1740937846935,-500.0,0.00024897,2]
[355155555,1740937846949,-500.0,0.00024897,2]
[355155556,1740937846961,-500.0,0.00024897,2]
[355155558,1740937846972,-500.0,0.00024897,2]
[355155559,1740937846985,-500.0,0.00024897,2]
[355155561,1740937846997,-500.0,0.00024897,2]
[355155562,1740937847008,-500.0,0.00024897,2]
[355155564,1740937847020,-500.0,0.00024897,2]
[355155566,1740937847032,-500.0,0.00024897,2]
[355155568,1740937847043,-500.0,0.00024897,2]
[355155569,1740937847055,-500.0,0.00024897,2]
[355155571,1740937847066,-500.0,0.00024897,2]
[355155573,1740937847078,-500.0,0.00024897,2]
[355155574,1740937847089,-500.0,0.00024897,2]
[355155576,1740937847101,-981.07,0.00024897,2]
[355155578,1740937847112,-500.0,0.00024897,2]
[355155579,1740937847124,-500.0,0.00024897,2]
[355155581,1740937847139,-500.0,0.00024897,2]
[355155583,1740937847155,-893.26,0.00024897,2]
[355155584,1740937847167,-726.79,0.00024897,2]
[355155586,1740937847182,-500.0,0.00024897,2]
[355155588,1740937847194,-500.0,0.00024897,2]
[355155590,1740937847206,-616.74,0.00024897,2]
[355155592,1740937847218,-500.0,0.00024897,2]
[355155593,1740937847229,-500.0,0.00024897,2]
[355155595,1740937847240,-500.0,0.00024897,2]
[355155597,1740937847252,-500.0,0.00024897,2]
[355155598,1740937847263,-561.65,0.00024897,2]
[355155600,1740937847274,-500.0,0.00024897,2]
[355155602,1740937847285,-500.0,0.00024897,2]
[355155603,1740937847296,-500.0,0.00024897,2]
[355155605,1740937847307,-500.0,0.00024897,2]
[355155607,1740937847318,-500.0,0.00024897,2]
[355155609,1740937847329,-500.0,0.00024897,2]
[355155611,1740937847340,-500.0,0.00024897,2]
[355155612,1740937847351,-500.0,0.00024897,2]
[355155614,1740937847361,-211.87654652,0.00024897,2]
[355155660,1740937848011,-288.12345348,0.00024897,2]
[355155661,1740937848021,-500.0,0.00024897,2]
[355155663,1740937848032,-500.0,0.00024897,7]
[355155665,1740937848043,-500.0,0.00024897,2]
[355155667,1740937848052,-500.0,0.00024897,2]
[355155668,1740937848063,-500.0,0.00024897,2]
[355155670,1740937848074,-500.0,0.00024897,2]
[355155672,1740937848085,-500.0,0.00024897,2]
[355155674,1740937848095,-500.0,0.00024897,2]
[355155676,1740937848106,-500.0,0.00024897,2]
[355155677,1740937848117,-500.0,0.00024897,2]
[355155679,1740937848128,-560.28,0.00024897,2]
[355155681,1740937848138,-500.0,0.00024897,2]
[355155683,1740937848149,-500.0,0.00024897,2]
[355155684,1740937848160,-500.0,0.00024897,2]
[355155686,1740937848171,-500.0,0.00024897,2]
[355155688,1740937848186,-500.0,0.00024897,2]
[355155690,1740937848198,-576.41,0.00024897,2]
[355155691,1740937848208,-500.0,0.00024897,2]
[355155693,1740937848220,-495.14666252,0.00024897,2]
[355155695,1740937848234,-4.85333748,0.00024897,2]
[355155697,1740937848245,-533.35921007,0.00024897,2]
[355155699,1740937848255,-500.0,0.00024897,2]
[355155701,1740937848266,-500.0,0.00024897,2]
[355155703,1740937848277,-500.0,0.00024897,2]
[355155704,1740937848287,-500.0,0.00024897,2]
[355155706,1740937848297,-500.0,0.00024897,2]
[355155708,1740937848307,-500.0,0.00024897,2]
[355155710,1740937848318,-500.0,0.00024897,2]
[355155711,1740937848328,-500.0,0.00024897,2]
[355155713,1740937848338,-500.0,0.00024897,2]
[355155715,1740937848348,-679.32,0.00024897,2]
[355155717,1740937848359,-500.0,0.00024897,2]
[355155718,1740937848371,-500.0,0.00024897,2]
[355155720,1740937848382,-500.0,0.00024897,2]
[355155722,1740937848393,-500.0,0.00024897,2]
[355155724,1740937848404,-500.0,0.00024897,2]
[355155726,1740937848416,-500.0,0.00024897,2]
[355155727,1740937848428,-500.0,0.00024897,2]
[355155729,1740937848442,-500.0,0.00024897,2]
[355155731,1740937848453,-500.0,0.00024897,2]
[355155733,1740937848464,-500.0,0.00024897,2]
[355155734,1740937848474,-500.0,0.00024897,2]
[355155736,1740937848486,-500.0,0.00024897,2]
[355155738,1740937848497,-500.0,0.00024897,2]
[355155740,1740937848508,-500.0,0.00024897,2]
[355155742,1740937848520,-500.0,0.00024897,2]
[355155744,1740937848530,-500.0,0.00024897,2]
[355155745,1740937848540,-500.0,0.00024897,2]
[355155747,1740937848551,-500.0,0.00024897,2]
[355155749,1740937848564,-500.0,0.00024897,2]
[355155751,1740937848576,-500.0,0.00024897,2]
[355155752,1740937848586,-500.0,0.00024897,2]
[355155754,1740937848599,-500.0,0.00024897,2]
[355155756,1740937848609,-582.51,0.00024897,2]
[355155757,1740937848621,-500.0,0.00024897,2]
[355155759,1740937848632,-500.0,0.00024897,2]
[355155761,1740937848643,-500.0,0.00024897,2]
[355155763,1740937848654,-668.22,0.00024897,2]
[355155764,1740937848664,-500.0,0.00024897,2]
[355155765,1740937848674,-574.39,0.00024897,2]
[355155766,1740937848688,-500.0,0.00024897,2]
[355155767,1740937848699,-500.0,0.00024897,2]
[355155768,1740937848711,-500.0,0.00024897,2]
[355155769,1740937848722,-500.0,0.00024897,2]
[355155770,1740937848732,-500.0,0.00024897,2]
[355155771,1740937848744,-500.0,0.00024897,2]
[355155772,1740937848754,-500.0,0.00024897,2]
[355155773,1740937848765,-661.62,0.00024897,2]
[355155774,1740937848777,-500.0,0.00024897,2]
[355155775,1740937848788,-500.0,0.00024897,2]
[355155776,1740937848799,-500.0,0.00024897,2]
[355155777,1740937848810,-500.0,0.00024897,2]
[355155778,1740937848820,-500.0,0.00024897,2]
[355155779,1740937848832,-500.0,0.00024897,2]
[355155780,1740937848846,-500.0,0.00024897,2]
[355155782,1740937848859,-500.0,0.00024897,2]
[355155783,1740937848872,-500.0,0.00024897,2]
[355155785,1740937848884,-500.0,0.00024897,2]
[355155787,1740937848896,-500.0,0.00024897,2]
[355155789,1740937848908,-500.0,0.00024897,2]
[355155791,1740937848919,-500.0,0.00024897,2]
[355155793,1740937848935,-500.0,0.00024897,2]
[355155795,1740937848952,-500.0,0.00024897,2]
[355155796,1740937848965,-546.37775708,0.00024897,2]
[355155797,1740937848975,-500.0,0.00024897,2]
[355155798,1740937848986,-500.0,0.00024897,2]
[355155799,1740937848996,-500.0,0.00024897,2]
[355155800,1740937849007,-500.0,0.00024897,2]
[355155801,1740937849017,-500.0,0.00024897,2]
[355155802,1740937849028,-500.0,0.00024897,2]
[355155803,1740937849039,-500.0,0.00024897,2]
[355155804,1740937849049,-511.98411959,0.00024897,2]
[355155805,1740937849059,-500.0,0.00024897,2]
[355155806,1740937849069,-500.0,0.00024897,2]
[355155807,1740937849080,-500.0,0.00024897,2]
[355155808,1740937849092,-615.79960358,0.00024897,2]
[355155809,1740937849103,-500.0,0.00024897,2]
[355155810,1740937849114,-504.48956043,0.00024897,2]
[355155811,1740937849125,-500.0,0.00024897,2]
[355155812,1740937849136,-612.47,0.00024897,2]
[355155813,1740937849147,-551.39,0.00024897,2]
[355155814,1740937849158,-500.0,0.00024897,2]
[355155816,1740937849170,-1897.95,0.00024897,2]
[355155818,1740937849186,-500.0,0.00024897,2]
[355155820,1740937849197,-500.0,0.00024897,2]
[355155822,1740937849207,-883.35,0.00024897,2]
[355155824,1740937849218,-500.0,0.00024897,2]
[355155826,1740937849229,-500.0,0.00024897,2]
[355155828,1740937849240,-500.0,0.00024897,2]
[355155830,1740937849251,-150.89774066,0.00024897,2]
[355155833,1740937849266,-1208.66225934,0.00024897,2]
[355155834,1740937849276,-500.0,0.00024897,2]
[355155836,1740937849287,-500.0,0.00024897,2]
[355155838,1740937849297,-500.0,0.00024897,2]
[355155840,1740937849308,-2139.64,0.00024897,2]
[355155843,1740937849319,-500.0,0.00024897,2]
[355155845,1740937849329,-500.0,0.00024897,2]
[355155847,1740937849339,-666.3,0.00024897,2]
[355155849,1740937849348,-500.0,0.00024897,2]
[355155851,1740937849358,-500.0,0.00024897,2]
[355155853,1740937849369,-1000.0,0.00024897,2]
[355155855,1740937849379,-500.0,0.00024897,2]
[355155856,1740937849389,-506.21,0.00024897,2]
[355155858,1740937849400,-500.0,0.00024897,2]
[355155861,1740937849411,-500.0,0.00024897,2]
[355155863,1740937849422,-500.0,0.00024897,2]
[355155865,1740937849436,-1243.74,0.00024897,2]
[355155867,1740937849446,-500.0,0.00024897,2]
[355155869,1740937849458,-500.0,0.00024897,2]
[355155871,1740937849468,-500.0,0.00024897,2]
[355155872,1740937849478,-500.0,0.00024897,2]
[355155874,1740937849489,-551.88,0.00024897,2]
[355155876,1740937849499,-1338.27,0.00024897,2]
[355155878,1740937849509,-500.0,0.00024897,2]
[355155880,1740937849519,-580.22,0.00024897,2]
[355155882,1740937849530,-500.0,0.00024897,2]
[355155884,1740937849540,-5061.49743836,0.00024897,2]
[355155886,1740937849551,-500.0,0.00024897,2]
[355155888,1740937849561,-500.0,0.00024897,2]
[355155889,1740937849571,-500.0,0.00024897,2]
[355155891,1740937849582,-501.07852769,0.00024897,2]
[355155893,1740937849593,-500.0,0.00024897,2]
[355155895,1740937849603,-500.0,0.00024897,2]
[355155897,1740937849612,-500.0,0.00024897,2]
[355155899,1740937849622,-900.63,0.00024897,2]
[355155901,1740937849632,-500.0,0.00024897,2]
[355155902,1740937849642,-500.0,0.00024897,2]
[355155904,1740937849652,-711.69,0.00024897,2]
[355155906,1740937849662,-1990.27,0.00024897,2]
[355155908,1740937849672,-500.0,0.00024897,2]
[355155910,1740937849687,-789.39,0.00024897,2]
[355155912,1740937849697,-2000.73,0.00024897,2]
[355155914,1740937849707,-561.03,0.00024897,2]
[355155916,1740937849718,-500.0,0.00024897,2]
[355155918,1740937849728,-500.0,0.00024897,2]
[355155920,1740937849740,-1144.17,0.00024897,2]
[355155922,1740937849750,-500.0,0.00024897,2]
[355155924,1740937849760,-500.0,0.00024897,2]
[355155926,1740937849770,-500.0,0.00024897,2]
[355155928,1740937849781,-500.0,0.00024897,2]
[355155930,1740937849793,-500.0,0.00024897,2]
[355155932,1740937849803,-500.0,0.00024897,2]
[355155934,1740937849814,-500.0,0.00024897,2]
[355155936,1740937849824,-500.0,0.00024897,2]
[355155938,1740937849834,-198.72625091,0.00024897,2]
[355155940,1740937849847,-301.27374909,0.00024897,2]
[355155942,1740937849857,-500.0,0.00024897,2]
[355155944,1740937849867,-456.25009727,0.00024897,2]
[355155946,1740937849879,-43.74990273,0.00024897,2]
[355155948,1740937849888,-500.0,0.00024897,2]
[355155950,1740937849898,-812.93,0.00024897,2]
[355155952,1740937849908,-500.0,0.00024897,2]
[355155953,1740937849918,-500.0,0.00024897,2]
[355155955,1740937849931,-615.1,0.00024897,2]
[355155957,1740937849944,-500.0,0.00024897,2]
[355155959,1740937849954,-500.0,0.00024897,2]
[355155961,1740937849964,-623.5,0.00024897,2]
[355155963,1740937849975,-436.92009725,0.00024897,2]
[355155966,1740937849988,-63.07990275,0.00024897,2]
[355155968,1740937849998,-340.22009725,0.00024897,2]
[355155973,1740937850045,-160.58397251,0.00024897,2]
[355155975,1740937850054,-500.0,0.00024897,2]
[355155977,1740937850063,-268.82842749,0.00024897,2]
[355155979,1740937850075,-231.17157251,0.00024897,2]
[355155981,1740937850084,-500.0,0.00024897,2]
[355155983,1740937850094,-208.50389357,0.00024897,2]
[355155985,1740937850106,-291.49610643,0.00024897,2]
[355155987,1740937850115,-600.2654475,0.00024897,2]
[355155989,1740937850125,-500.0,0.00024897,2]
[355155991,1740937850135,-762.88,0.00024897,2]
[355155993,1740937850145,-502.46294754,0.00024898,2]
[355155995,1740937850156,-1200.0,0.000249,9]
[355155997,1740937850166,-5026.90523853,0.000249,2]
[355156000,1740937850181,-2056.74942221,0.000249,2]
[355156001,1740937850193,-947.43360783,0.000249,2]
[355156004,1740937850214,-388284.67523832,0.000249,2]
[355156006,1740937850224,-500.0,0.0002493,2]
[355156008,1740937850233,-763.27,0.0002493,2]
[355156019,1740937850327,-230.12320046,0.00024931,2]
[355156020,1740937850337,-243.93096083,0.00024931,2]
[355156023,1740937850347,-500.0,0.00024931,2]
[355156024,1740937850357,-503.13220812,0.00024931,2]
[355156026,1740937850366,-502.29823342,0.00024931,2]
[355156028,1740937850376,-501.18897814,0.00024931,2]
[355156030,1740937850385,-509.12607805,0.00024931,2]
[355156032,1740937850394,-304.29727347,0.00024931,2]
[355156034,1740937850404,-503.68164783,0.00024931,2]
[355156036,1740937850413,-500.0,0.00024931,2]
[355156038,1740937850422,-501.12425076,0.00024931,2]
[355156040,1740937850435,-502.12380596,0.00024931,2]
[355156042,1740937850445,-500.0,0.00024931,2]
[355156043,1740937850455,-500.0,0.00024931,2]
[355156045,1740937850466,-502.54393872,0.00024931,2]
[355156047,1740937850476,-500.72696343,0.00024931,2]
[355156049,1740937850485,-500.0,0.00024931,2]
[355156051,1740937850495,-500.0,0.00024931,2]
[355156053,1740937850505,-502.67619684,0.00024931,2]
[355156055,1740937850514,-502.45444396,0.00024931,2]
[355156057,1740937850524,-505.23469389,0.00024931,2]
[355156059,1740937850533,-617.56015701,0.00024931,2]
[355156061,1740937850542,-500.91225496,0.00024931,2]
[355156063,1740937850552,-322.17704466,0.00024931,2]
[355156065,1740937850562,-500.0,0.00024931,2]
[355156067,1740937850572,-508.60358334,0.00024931,2]
[355156069,1740937850582,-506.20412259,0.00024931,2]
[355156070,1740937850591,-334.67491712,0.00024931,2]
[355156071,1740937850601,-292.0473277,0.00024931,2]
[355156072,1740937850611,-500.0,0.00024931,2]
[355156073,1740937850621,-1114.43,0.00024931,2]
[355156074,1740937850630,-500.0,0.00024931,2]
[355156075,1740937850640,-678.56,0.00024931,2]
[355156076,1740937850650,-500.0,0.00024931,2]
[355156077,1740937850659,-500.0,0.00024931,2]
[355156078,1740937850669,-500.0,0.00024931,2]
[355156079,1740937850681,-701.59,0.00024931,2]
[355156080,1740937850690,-500.79929574,0.00024931,2]
[355156081,1740937850700,-500.0,0.00024931,2]
[355156082,1740937850709,-500.0,0.00024931,2]
[355156083,1740937850719,-500.0,0.00024931,2]
[355156084,1740937850728,-362.39064584,0.00024934,4]
[355156085,1740937850737,-500.0,0.00024999,2]
[355156086,1740937850747,-10234.7496282,0.00025002,2]
[355156088,1740937850756,-500.0,0.0002507,2]
[355156090,1740937850766,-500.0,0.0002507,2]
[355156092,1740937850775,-1027.09,0.0002507,2]
[355156094,1740937850784,-500.0,0.0002507,2]
[355156096,1740937850793,-500.0,0.0002507,2]
[355156098,1740937850803,-661.31,0.0002507,2]
[355156100,1740937850813,-536.62,0.0002507,2]
[355156102,1740937850823,-500.0,0.0002507,2]
[355156104,1740937850832,-500.0,0.0002507,2]
[355156106,1740937850842,-664.68,0.0002507,2]
[355156108,1740937850853,-500.0,0.0002507,2]
[355156110,1740937850862,-500.0,0.0002507,2]
[355156112,1740937850873,-500.0,0.0002507,2]
[355156114,1740937850883,-688.44,0.0002507,2]
[355156116,1740937850893,-799.43,0.0002507,2]
[355156118,1740937850902,-1011.96,0.0002507,2]
[355156120,1740937850913,-500.0,0.0002507,2]
[355156122,1740937850923,-980.75,0.0002507,2]
[355156124,1740937850937,-547.39,0.0002507,2]
[355156126,1740937850947,-758.27,0.0002507,2]
[355156128,1740937850957,-500.0,0.0002507,2]
[355156130,1740937850967,-638.55,0.0002507,2]
[355156132,1740937850979,-500.0,0.0002507,2]
[355156134,1740937850988,-500.0,0.0002507,2]
[355156136,1740937850998,-500.0,0.0002507,2]
[355156138,1740937851010,-500.0,0.0002507,2]
[355156140,1740937851022,-500.0,0.0002507,2]
[355156142,1740937851031,-537.89,0.0002507,2]
[355156144,1740937851041,-1342.57,0.0002507,2]
[355156146,1740937851050,-500.0,0.0002507,2]
[355156148,1740937851059,-500.0,0.0002507,2]
[355156150,1740937851068,-502.19624367,0.0002507,2]
[355156151,1740937851079,-501.29,0.0002507,2]
[355156153,1740937851088,-212.07676444,0.00025071,2]
[355156155,1740937851097,-500.0,0.00025071,2]
[355156157,1740937851108,-619.20977604,0.00025071,2]
[355156159,1740937851118,-555.55336183,0.00025071,2]
[355156162,1740937851128,-500.0,0.00025071,2]
[355156163,1740937851138,-500.0,0.00025071,2]
[355156165,1740937851148,-593.06,0.00025071,2]
[355156167,1740937851158,-500.0,0.00025071,2]
[355156169,1740937851167,-500.0,0.00025071,2]
[355156172,1740937851181,-500.0,0.00025071,2]
[355156174,1740937851193,-500.0,0.00025071,2]
[355156176,1740937851202,-613.44364998,0.00025071,2]
[355156178,1740937851211,-505.29631163,0.00025071,2]
[355156180,1740937851221,-500.0,0.00025071,2]
[355156181,1740937851231,-500.0,0.00025071,2]
[355156183,1740937851241,-509.8879783,0.00025071,2]
[355156185,1740937851252,-500.0,0.00025071,2]
[355156187,1740937851262,-500.0,0.00025071,2]
[355156190,1740937851271,-500.0,0.00025071,2]
[355156191,1740937851282,-500.0,0.00025071,2]
[355156193,1740937851291,-500.0,0.00025071,2]
[355156195,1740937851301,-500.0,0.00025071,2]
[355156197,1740937851311,-500.0,0.00025071,2]
[355156199,1740937851321,-503.64316961,0.00025071,2]
[355156201,1740937851331,-500.0,0.00025071,2]
[355156203,1740937851340,-500.0,0.00025071,2]
[355156205,1740937851350,-500.0,0.00025071,2]
[355156207,1740937851359,-500.0,0.00025071,2]
[355156209,1740937851369,-500.0,0.00025071,2]
[355156211,1740937851379,-500.0,0.00025071,2]
[355156213,1740937851388,-500.0,0.00025071,2]
[355156215,1740937851398,-500.0,0.00025071,2]
[355156217,1740937851408,-500.0,0.00025071,2]
[355156219,1740937851417,-500.0,0.00025071,2]
[355156221,1740937851432,-500.0,0.00025071,2]
[355156223,1740937851442,-502.16642322,0.00025071,2]
[355156225,1740937851451,-500.0,0.00025071,2]
[355156227,1740937851462,-500.0,0.00025071,2]
[355156229,1740937851473,-500.0,0.00025071,2]
[355156231,1740937851483,-500.0,0.00025071,2]
[355156233,1740937851492,-500.0,0.00025071,2]
[355156235,1740937851503,-500.0,0.00025071,2]
[355156237,1740937851512,-500.0,0.00025071,2]
[355156239,1740937851522,-180.00107178,0.00025071,2]
[355156241,1740937851532,-500.0,0.00025071,2]
[355156243,1740937851542,-500.0,0.00025071,2]
[355156245,1740937851551,-1328.36,0.00025071,2]
[355156247,1740937851561,-502.32221236,0.00025071,2]
[355156249,1740937851571,-500.0,0.00025071,2]
[355156251,1740937851580,-500.0,0.00025071,2]
[355156253,1740937851590,-500.0,0.00025071,2]
[355156255,1740937851600,-412.14,0.00025071,2]
[355156257,1740937851609,-500.0,0.00025071,2]
[355156259,1740937851620,-400.963399,0.00025071,2]
[355156261,1740937851630,-500.0,0.00025071,2]
[355156263,1740937851640,-877.08,0.00025071,2]
[355156265,1740937851651,-620.22,0.00025071,2]
[355156267,1740937851662,-1696.63,0.00025071,2]
[355156269,1740937851672,-535.92,0.00025071,2]
[355156271,1740937851686,-500.0,0.00025071,2]
[355156272,1740937851696,-500.0,0.00025071,2]
[355156273,1740937851706,-500.0,0.00025071,2]
[355156275,1740937851716,-500.0,0.00025071,2]
[355156277,1740937851726,-500.0,0.00025071,2]
[355156279,1740937851736,-500.0,0.00025071,2]
[355156281,1740937851746,-312.078972,0.00025071,2]
[355156283,1740937851756,-500.0,0.00025071,2]
[355156285,1740937851766,-500.0,0.00025071,2]
[355156287,1740937851777,-500.0,0.00025071,2]
[355156289,1740937851786,-992.81,0.00025071,2]
[355156290,1740937851796,-500.0,0.00025071,2]
[355156292,1740937851806,-500.0,0.00025071,2]
[355156294,1740937851816,-500.0,0.00025071,2]
[355156296,1740937851825,-500.0,0.00025071,2]
[355156298,1740937851835,-500.0,0.00025071,2]
[355156300,1740937851844,-500.0,0.00025071,2]
[355156302,1740937851854,-500.0,0.00025071,2]
[355156304,1740937851864,-500.0,0.00025071,2]
[355156306,1740937851874,-1164.54,0.00025071,2]
[355156308,1740937851883,-500.0,0.00025071,2]
[355156310,1740937851893,-500.0,0.00025071,2]
[355156312,1740937851902,-3123.18,0.00025071,2]
[355156313,1740937851917,-500.0,0.00025071,2]
[355156315,1740937851931,-500.0,0.00025071,2]
[355156317,1740937851941,-500.0,0.00025071,2]
[355156319,1740937851951,-1410.0,0.00025071,2]
[355156321,1740937851962,-500.0,0.00025071,2]
[355156323,1740937851972,-502.35556194,0.00025071,2]
[355156325,1740937851982,-500.0,0.00025071,2]
[355156327,1740937851993,-500.0,0.00025071,2]
[355156329,1740937852003,-506.77859894,0.00025071,2]
[355156331,1740937852012,-500.0,0.00025071,2]
[355156333,1740937852022,-500.0,0.00025071,2]
[355156335,1740937852032,-1234.93,0.00025071,2]
[355156337,1740937852043,-500.0,0.00025071,2]
[355156338,1740937852052,-500.0,0.00025071,2]
[355156340,1740937852062,-1043.6,0.00025071,2]
[355156342,1740937852072,-507.10861516,0.00025071,2]
[355156344,1740937852082,-500.0,0.00025071,2]
[355156346,1740937852091,-500.0,0.00025071,2]
[355156348,1740937852101,-507.10060328,0.00025071,2]
[355156350,1740937852111,-500.0,0.00025071,2]
[355156352,1740937852119,-500.0,0.00025071,2]
[355156353,1740937852129,-1694.27,0.00025071,2]
[355156354,1740937852138,-500.0,0.00025071,2]
[355156355,1740937852148,-200.0,0.00025071,2]
[355156356,1740937852158,-500.0,0.00025071,2]
[355156357,1740937852167,-505.91044803,0.00025071,2]
[355156358,1740937852180,-500.0,0.00025071,2]
[355156359,1740937852191,-616.2,0.00025071,2]
[355156360,1740937852201,-500.0,0.00025071,2]
[355156361,1740937852211,-500.0,0.00025071,2]
[355156362,1740937852221,-1334.61,0.00025071,2]
[355156363,1740937852231,-500.0,0.00025071,2]
[355156364,1740937852240,-500.0,0.00025071,2]
[355156365,1740937852250,-784.6,0.00025071,2]
[355156366,1740937852260,-500.0,0.00025071,2]
[355156367,1740937852270,-500.0,0.00025071,2]
[355156368,1740937852279,-500.0,0.00025071,2]
[355156369,1740937852289,-500.0,0.00025071,2]
[355156370,1740937852298,-500.0,0.00025071,2]
[355156371,1740937852308,-500.0,0.00025071,2]
[355156372,1740937852318,-1672.23,0.00025071,2]
[355156374,1740937852327,-500.0,0.00025071,2]
[355156376,1740937852336,-500.0,0.00025071,2]
[355156377,1740937852346,-505.05470303,0.00025071,2]
[355156379,1740937852356,-500.0,0.00025071,2]
[355156381,1740937852365,-2496.59,0.00025071,2]
[355156383,1740937852375,-518.65280418,0.00025071,2]
[355156385,1740937852385,-1537.3,0.00025071,2]
[355156387,1740937852394,-500.0,0.00025071,2]
[355156389,1740937852404,-505.30134363,0.00025071,2]
[355156391,1740937852414,-500.0,0.00025071,2]
[355156393,1740937852423,-500.0,0.00025071,2]
[355156395,1740937852436,-500.0,0.00025071,2]
[355156397,1740937852447,-500.0,0.00025071,2]
[355156399,1740937852456,-500.0,0.00025071,2]
[355156401,1740937852466,-500.0,0.00025071,2]
[355156403,1740937852475,-500.0,0.00025071,2]
[355156405,1740937852485,-500.0,0.00025071,2]
[355156407,1740937852495,-500.0,0.00025071,2]
[355156409,1740937852505,-500.0,0.00025071,2]
[355156411,1740937852515,-500.0,0.00025071,2]
[355156413,1740937852525,-507.8078317,0.00025071,2]
[355156415,1740937852535,-500.0,0.00025071,2]
[355156417,1740937852544,-500.0,0.00025071,2]
[355156419,1740937852555,-1129.86,0.00025071,2]
[355156421,1740937852564,-500.0,0.00025071,2]
[355156423,1740937852574,-907.66,0.00025071,2]
[355156425,1740937852584,-500.0,0.00025071,2]
[355156427,1740937852593,-500.0,0.00025071,2]
[355156429,1740937852604,-500.0,0.00025071,2]
[355156431,1740937852614,-500.0,0.00025071,2]
[355156433,1740937852624,-559.5477381,0.00025071,2]
[355156435,1740937852635,-500.0,0.00025071,2]
[355156437,1740937852645,-500.0,0.00025071,2]
[355156439,1740937852654,-1407.11,0.00025071,2]
[355156440,1740937852664,-500.0,0.00025071,2]
[355156442,1740937852674,-500.0,0.00025071,2]
[355156445,1740937852687,-500.0,0.00025071,2]
[355156447,1740937852696,-500.0,0.00025071,2]
[355156449,1740937852707,-500.0,0.00025071,2]
[355156451,1740937852716,-500.0,0.00025071,2]
[355156452,1740937852725,-500.0,0.00025071,2]
[355156454,1740937852735,-506.39163518,0.00025071,2]
[355156456,1740937852745,-500.0,0.00025071,2]
[355156459,1740937852756,-500.0,0.00025071,2]
[355156461,1740937852766,-512.29325534,0.00025071,2]
[355156462,1740937852777,-500.0,0.00025071,2]
[355156465,1740937852788,-500.0,0.00025071,2]
[355156467,1740937852798,-500.0,0.00025071,2]
[355156469,1740937852808,-504.47556992,0.00025071,2]